fUSD/lending_fUSD_20250926
["ID","MTS","AMOUNT","RATE_DAILY","PERIOD"]
[387837499,1758912008446,-5000.0,0.000199,2]
[387837500,1758912008473,-11925.41360752,0.0002,2]
[387837501,1758912008497,-150.0,0.0002,2]
[387837502,1758912008522,-589.4960622,0.0002,2]
[387837503,1758912008546,-82335.09033028,0.0002,2]
[387837504,1758912009050,-100000.0,0.0002,2]
[387837505,1758912011700,-155.19977526,0.000199,2]
[387837506,1758912011723,-504.56925487,0.00019973,2]
[387837507,1758912011747,-17664.90966972,0.0002,2]
[387837508,1758912011770,-962.95225293,0.0002,7]
[387837509,1758912011793,-500.0,0.0002,2]
[387837510,1758912011815,-8715.4156731,0.0002,2]
[387837511,1758912011837,-395.8,0.0002,7]
[387837512,1758912011860,-7669.0,0.0002,7]
[387837513,1758912011882,-63432.15337412,0.0002,2]
[387837514,1758912019538,-1668.09163838,0.000199,2]
[387837515,1758912019564,-500.0,0.00019973,2]
[387837516,1758912019586,-500.0,0.00019973,2]
[387837517,1758912019609,-170.65,0.0001999,2]
[387837518,1758912019631,-586.02,0.0001999,2]
[387837519,1758912019654,-586.02,0.0001999,2]
[387837520,1758912019677,-1000.0,0.00019999,2]
[387837521,1758912019699,-18905.0,0.0002,2]
[387837522,1758912019722,-4179.0,0.0002,2]
[387837523,1758912019745,-54905.21836162,0.0002,2]
[387837536,1758912405228,150.0,0.000175,2]
[387837557,1758912633743,-941.403643,0.00018586,2]
[387837558,1758912634255,-150.0,0.0001868,2]
[387837559,1758912634265,-102.969257,0.0001868,2]
[387837560,1758912634277,-56.56029362,0.0001868,2]
[387837561,1758912634288,-475.16563432,0.00018681,2]
[387837562,1758912634298,-371.90773856,0.00018705,2]
[387837563,1758912635656,-98.90222531,0.00018705,2]
[387837564,1758912635665,-5.89536218,0.00018712,2]
[387837565,1758912635676,-1574.27765845,0.00018712,2]
[387837566,1758912635989,-932.11797937,0.00018712,2]
[387837567,1758912635998,-300.0,0.00018728,2]
[387837568,1758912636007,-1200.0,0.00018728,2]
[387837569,1758912636016,-300.0,0.0001873,2]
[387837570,1758912636025,-195.0,0.0001873,2]
[387837571,1758912636035,-647.35685381,0.0001873,2]
[387837572,1758912636044,-150.0,0.0001878,7]
[387837573,1758912636054,-151.0,0.00019203,2]
[387837574,1758912636064,-300.0,0.00019295,2]
[387837575,1758912636073,-1200.0,0.00019296,2]
[387837576,1758912636083,-850.0,0.00019296,2]
[387837577,1758912636092,-500.0,0.000193,7]
[387837578,1758912636102,-175.36,0.000193,2]
[387837579,1758912636111,-310.49,0.000193,2]
[387837580,1758912636122,-322.49,0.000193,2]
[387837581,1758912636131,-167.57,0.000193,2]
[387837582,1758912636140,-150.0,0.000193,2]
[387837583,1758912636150,-150.0,0.000193,2]
[387837584,1758912636159,-151.66,0.000193,2]
[387837585,1758912636169,-412.11,0.000193,2]
[387837586,1758912636181,-175.36,0.000193,2]
[387837587,1758912636191,-412.11,0.000193,2]
[387837588,1758912636201,-250.0,0.00019345,2]
[387837589,1758912636211,-1100.0,0.000194,7]
[387837590,1758912636222,-335.14,0.000194,2]
[387837591,1758912636232,-150.0,0.000194,2]
[387837592,1758912636242,-412.11,0.000194,2]
[387837593,1758912636252,-250.0,0.00019405,2]
[387837594,1758912636262,-1700.0,0.000195,7]
[387837595,1758912636272,-250.0,0.00019584,2]
[387837596,1758912636281,-2200.0,0.000196,7]
[387837597,1758912636290,-250.0,0.00019654,2]
[387837598,1758912636300,-2800.0,0.000197,7]
[387837599,1758912636309,-169.82,0.000197,2]
[387837600,1758912636318,-250.0,0.00019713,2]
[387837601,1758912636328,-364.0,0.00019726,2]
[387837602,1758912636337,-4413.43,0.00019726,2]
[387837603,1758912636347,-226.60926915,0.00019751,2]
[387837604,1758912636356,-1000.0,0.00019769,2]
[387837605,1758912636365,-1000.0,0.00019788,2]
[387837606,1758912636375,-500.0,0.000198,7]
[387837607,1758912636385,-76.69500617,0.000198,2]
[387837608,1758912636443,-155.96239383,0.000198,2]
[387837609,1758912636452,-291.6710856,0.000198,2]
[387837610,1758912636547,-708.3289144,0.000198,2]
[387837611,1758912636557,-2500.0,0.000198,2]
[387837612,1758912636567,-550.45067668,0.00019813,2]
[387837731,1758912642537,-449.54932332,0.00019813,2]
[387837732,1758912642548,-5241.45067669,0.00019823,2]
[387837733,1758912642602,-2059.36108121,0.00019823,2]
[387837734,1758912642612,-250.0,0.00019828,2]
[387837735,1758912642626,-364.0,0.00019838,2]
[387837736,1758912642636,-200.0,0.0001984,2]
[387837737,1758912642645,-364.0,0.0001985,2]
[387837738,1758912642655,-150.0,0.0001987,2]
[387837739,1758912642665,-169.96680046,0.00019873,2]
[387837740,1758912642674,-257.91778498,0.00019888,2]
[387837741,1758912642685,-209.40437684,0.00019888,2]
[387837742,1758912642694,-2092.6906426,0.00019888,2]
[387837743,1758912643182,-7459.47722287,0.00019888,2]
[387837744,1758912643192,-847.53,0.0001989,3]
[387837745,1758912643201,-635.90848468,0.00019895,2]
[387837746,1758912643211,-161.78576497,0.00019899,2]
[387837747,1758912643220,-500.0,0.00019899,2]
[387837748,1758912643230,-288.67889051,0.00019899,2]
[387837749,1758912643239,-200.67936651,0.00019899,2]
[387837750,1758912643248,-260.18510535,0.00019899,2]
[387837751,1758912643258,-7653.08717178,0.000199,2]
[387837752,1758912645241,-370.15,0.00018729,2]
[387837753,1758912645251,-25649.78932822,0.000199,2]
[387837754,1758912645260,-143329.2001,0.000199,2]
[387837755,1758912645270,-5000.0,0.000199,2]
[387837756,1758912645279,-500.0,0.000199,7]
[387837758,1758912645288,-835.93579705,0.000199,2]
[387837759,1758912645297,-637.60749336,0.000199,2]
[387837760,1758912645306,-1299.304,0.00019931,2]
[387837761,1758912645316,-9927.91053268,0.00019943,2]
[387837762,1758912645325,-500.0,0.00019973,2]
[387837763,1758912645335,-500.0,0.00019973,2]
[387837764,1758912645344,-500.0,0.00019973,2]
[387837765,1758912645354,-500.0,0.00019973,2]
[387837766,1758912645363,-500.0,0.00019973,2]
[387837767,1758912645373,-500.0,0.00019973,2]
[387837768,1758912645382,-500.0,0.00019973,2]
[387837769,1758912645391,-500.0,0.00019973,2]
[387837770,1758912645400,-298.15086927,0.00019973,2]
[387837771,1758912645410,-500.0,0.00019973,2]
[387837772,1758912645419,-500.0,0.00019973,2]
[387837773,1758912645428,-500.0,0.00019973,2]
[387837774,1758912645437,-301.02052774,0.00019973,2]
[387837775,1758912645447,-300.0,0.0001998,2]
[387837776,1758912645457,-322.17,0.0001998,2]
[387837777,1758912645466,-300.0,0.0001998,2]
[387837778,1758912645476,-300.0,0.0001998,2]
[387837779,1758912645486,-151.74,0.0001998,2]
[387837780,1758912645495,-334.98,0.0001998,2]
[387837782,1758912645505,-175.36,0.0001998,2]
[387837783,1758912645514,-175.36,0.0001998,2]
[387837784,1758912645525,-175.36,0.0001998,2]
[387837785,1758912645536,-544.52,0.0001998,2]
[387837786,1758912645546,-175.36,0.0001998,2]
[387837787,1758912645555,-1089.04,0.0001998,2]
[387837788,1758912645565,-2390.5,0.0001998,2]
[387837789,1758912645575,-175.36,0.0001998,2]
[387837790,1758912645584,-1195.25,0.0001998,2]
[387837791,1758912645593,-544.52,0.0001998,2]
[387837792,1758912645602,-1089.04,0.0001998,2]
[387837793,1758912645611,-1195.25,0.0001998,2]
[387837794,1758912645622,-150.0,0.00019988,2]
[387837795,1758912645631,-394.3735022,0.00019988,2]
[387837796,1758912645640,-151.0,0.00019988,2]
[387837797,1758912645650,-151.0,0.00019988,2]
[387837798,1758912645659,-151.0,0.00019988,2]
[387837799,1758912645670,-151.0,0.00019988,2]
[387837800,1758912645679,-151.0,0.00019988,2]
[387837801,1758912645688,-151.0,0.00019988,2]
[387837802,1758912645697,-151.0,0.00019988,2]
[387837803,1758912645706,-151.0,0.00019988,2]
[387837804,1758912645715,-151.0,0.00019988,2]
[387837805,1758912645724,-151.0,0.00019988,2]
[387837806,1758912645734,-216.28412268,0.00019988,2]
[387837807,1758912645743,-500.0,0.00019988,2]
[387837808,1758912645753,-371.35612048,0.00019988,2]
[387837809,1758912645762,-500.0,0.00019988,2]
[387837810,1758912645771,-500.0,0.00019988,2]
[387837811,1758912645780,-500.0,0.00019988,2]
[387837812,1758912645790,-160.0,0.00019988,2]
[387837813,1758912645799,-500.0,0.00019988,2]
[387837814,1758912645811,-500.0,0.00019988,2]
[387837815,1758912645820,-500.0,0.00019988,2]
[387837816,1758912645830,-500.0,0.00019988,2]
[387837817,1758912645840,-278.23827879,0.00019988,2]
[387837818,1758912645851,-218.32865898,0.0001999,2]
[387837819,1758912645861,-218.32865898,0.0001999,2]
[387837820,1758912645871,-218.32865898,0.0001999,2]
[387837821,1758912645880,-411.9109083,0.00019997,2]
[387837822,1758912645890,-27522.0195751,0.00019998,2]
[387837823,1758912645900,-3256.6065917,0.00019998,2]
[387837824,1758912645909,-10079.8879454,0.00019998,2]
[387837825,1758912645918,-457.9008215,0.00019998,2]
[387837826,1758912645927,-111932.213716,0.00019998,2]
[387837827,1758912645937,-150.0,0.00019999,2]
[387837828,1758912645946,-150.0,0.00019999,2]
[387837829,1758912645955,-500.0,0.00019999,2]
[387837830,1758912645964,-150.0,0.00019999,2]
[387837831,1758912645973,-500.0,0.00019999,2]
[387837832,1758912645982,-150.0,0.00019999,2]
[387837833,1758912645992,-150.0,0.00019999,2]
[387837834,1758912646003,-150.0,0.00019999,2]
[387837835,1758912646013,-2120.0,0.00019999,2]
[387837836,1758912646023,-150.0,0.00019999,2]
[387837837,1758912646032,-150.0,0.00019999,2]
[387837838,1758912646042,-500.0,0.00019999,2]
[387837839,1758912646053,-151.15287282,0.00019999,2]
[387837840,1758912646063,-500.0,0.00019999,2]
[387837841,1758912646073,-150.0,0.00019999,2]
[387837842,1758912646082,-150.0,0.00019999,2]
[387837843,1758912646091,-150.0,0.00019999,2]
[387837844,1758912646101,-150.0,0.00019999,2]
[387837845,1758912646110,-500.0,0.00019999,2]
[387837846,1758912646119,-150.0,0.00019999,2]
[387837847,1758912646128,-150.0,0.00019999,2]
[387837848,1758912646137,-287.01275339,0.00019999,2]
[387837849,1758912646146,-150.0,0.00019999,2]
[387837850,1758912646156,-150.0,0.00019999,2]
[387837851,1758912646165,-150.0,0.00019999,2]
[387837852,1758912646175,-150.0,0.00019999,2]
[387837853,1758912646366,-150.0,0.00019999,2]
[387837854,1758912646387,-500.0,0.00019999,2]
[387837855,1758912646397,-150.0,0.00019999,2]
[387837856,1758912646406,-500.0,0.00019999,2]
[387837857,1758912646415,-150.0,0.00019999,2]
[387837858,1758912646424,-921.0,0.00019999,2]
[387837859,1758912646434,-500.0,0.00019999,2]
[387837860,1758912646443,-1016.42963162,0.0002,2]
[387837861,1758912646452,-50912.74612919,0.0002,2]
[387837862,1758912646461,-639.602,0.0002,2]
[387837863,1758912646470,-3396.0,0.0002,2]
[387837864,1758912646479,-1305.0,0.0002,2]
[387837865,1758912646489,-603.0,0.0002,2]
[387837866,1758912646498,-417.474,0.0002,2]
[387837867,1758912646508,-400.0,0.0002,2]
[387837868,1758912646517,-6228.0,0.0002,2]
[387837869,1758912646527,-728.0,0.0002,2]
[387837870,1758912646536,-4179.0,0.0002,2]
[387837871,1758912646545,-18905.0,0.0002,2]
[387837872,1758912646555,-134564.24707821,0.0002,2]
[387837873,1758912646593,-99194.34687697,0.0002,2]
[387837874,1758912646766,-1102.9,0.0002,2]
[387837875,1758912649647,-318.8621916,0.00019003,2]
[387837876,1758912649706,-51.2878084,0.00019003,2]
[387837877,1758912649716,-370.15,0.00019277,2]
[387837878,1758912649726,-370.15,0.00019551,2]
[387837879,1758912649735,-370.17915756,0.00019825,2]
[387837880,1758912649745,-561.1472877,0.000199,2]
[387837881,1758912649755,-11718.57597033,0.0002,2]
[387837882,1758912652272,-1384.5506808,0.0002,2]
[387837883,1758912652366,-395711.58492556,0.0002,2]
[387837884,1758912652377,-1903.42000008,0.0002,2]
[387837885,1758912652389,-848.94456458,0.0002,2]
[387837886,1758912652509,-481.42920721,0.0002,2]
[387837887,1758912652580,-11073.35648524,0.0002,2]
[387837888,1758912767886,608.56444039,0.00030136,120]
[387837896,1758912789714,352.87426593,0.00030136,120]
[387837922,1758913160885,3034.94,0.00018452,2]
[387837939,1758913412651,251.5623387,0.00018479,2]
[387837943,1758913521569,296.11932077,0.00018,2]
[387838003,1758913718081,317.51,0.00018502,2]
[387838047,1758913832350,-1200.0,0.00018564,2]
[387838049,1758913832360,-300.0,0.00018564,2]
[387838051,1758913832370,-117.34995375,0.00018564,2]
[387838053,1758913832381,-882.65004625,0.00018564,2]
[387838055,1758913832392,-300.0,0.00018565,2]
[387838057,1758913832401,-2500.0,0.00018565,2]
[387838059,1758913832410,-562.1224499,0.00018565,2]
[387838082,1758913832625,-1437.8775501,0.00018565,2]
[387838085,1758913832636,-250.0,0.00018565,2]
[387838086,1758913832646,-195.0,0.00018566,2]
[387838088,1758913832656,-193.64144625,0.00018566,2]
[387838090,1758913832665,-300.0,0.00018567,2]
[387838092,1758913832675,-1067.63594609,0.00018568,2]
[387838094,1758913832684,-302.15268392,0.000186,2]
[387838096,1758913832694,-850.0,0.00018618,2]
[387838097,1758913832703,-439.01246607,0.00018619,2]
[387838098,1758913832714,-500.0,0.00018619,2]
[387838099,1758913832724,-500.0,0.00018619,2]
[387838100,1758913832734,-500.0,0.00018619,2]
[387838101,1758913832744,-85.35645019,0.00018619,2]
[387838102,1758913832782,-181.51354981,0.00018619,2]
[387838103,1758913832792,-500.0,0.00018619,2]
[387838104,1758913832801,-500.0,0.00018619,2]
[387838105,1758913832811,-500.0,0.00018619,2]
[387838106,1758913832821,-500.0,0.00018619,2]
[387838107,1758913832831,-249.5377825,0.00018619,2]
[387838108,1758913832841,-500.0,0.00018619,2]
[387838109,1758913832850,-500.0,0.00018619,2]
[387838110,1758913832860,-500.0,0.00018619,2]
[387838111,1758913832870,-500.0,0.00018619,2]
[387838112,1758913832880,-500.0,0.00018619,2]
[387838113,1758913832890,-500.0,0.00018619,2]
[387838114,1758913832900,-500.0,0.00018619,2]
[387838115,1758913832911,-500.0,0.00018619,2]
[387838116,1758913832921,-500.0,0.00018619,2]
[387838117,1758913832930,-500.0,0.00018619,2]
[387838118,1758913832940,-256.9659703,0.00018619,2]
[387838402,1758913840772,-2108.4,0.00018621,2]
[387838421,1758913840940,-4330.48510103,0.00018621,2]
[387838586,1758913842648,-294.7609765,0.00018621,2]
[387838587,1758913842660,-1483.74943874,0.00018621,2]
[387838612,1758913843057,-529.09448373,0.00018621,2]
[387838614,1758913843067,-9455.13,0.00018621,2]
[387838616,1758913843076,-6390.59,0.00018621,2]
[387838618,1758913843086,-150.0,0.00018706,7]
[387838648,1758913843351,-184.08,0.00018953,2]
[387838650,1758913843364,-151.0,0.00018988,2]
[387838652,1758913843374,-151.0,0.00018988,2]
[387838654,1758913843384,-151.0,0.00018988,2]
[387838656,1758913843394,-151.0,0.00018988,2]
[387838658,1758913843403,-151.0,0.00018988,2]
[387838660,1758913843413,-151.0,0.00018988,2]
[387838662,1758913843422,-151.0,0.00018988,2]
[387838664,1758913843432,-151.0,0.00018988,2]
[387838665,1758913843442,-151.0,0.00018988,2]
[387838667,1758913843452,-151.0,0.00018988,2]
[387838668,1758913843461,-151.0,0.00018988,2]
[387838670,1758913843470,-200.0,0.00018988,2]
[387838671,1758913843480,-500.0,0.00018988,2]
[387838673,1758913843490,-500.0,0.00018988,2]
[387838674,1758913843499,-480.38805369,0.00018988,2]
[387838676,1758913843509,-500.0,0.00018988,2]
[387838678,1758913843518,-151.0,0.00018988,2]
[387838679,1758913843528,-151.0,0.00018988,2]
[387838681,1758913843537,-151.0,0.00018988,2]
[387838682,1758913843546,-151.0,0.00018988,2]
[387838684,1758913843555,-151.0,0.00018988,2]
[387838685,1758913843565,-151.0,0.00018988,2]
[387838687,1758913843574,-151.0,0.00018988,2]
[387838688,1758913843583,-151.0,0.00018988,2]
[387838690,1758913843593,-151.0,0.00018988,2]
[387838691,1758913843603,-151.0,0.00018988,2]
[387838693,1758913843613,-151.0,0.00018988,2]
[387838695,1758913843622,-151.0,0.00018988,2]
[387838696,1758913843631,-151.0,0.00018988,2]
[387838698,1758913843641,-151.0,0.00018988,2]
[387838699,1758913843652,-259.42119094,0.00018988,2]
[387838701,1758913843661,-151.0,0.00018988,2]
[387838703,1758913843670,-151.0,0.00018988,2]
[387838704,1758913843680,-184.03814375,0.00018988,2]
[387838706,1758913843689,-151.0,0.00018999,2]
[387838708,1758913843698,-500.0,0.00018999,2]
[387838709,1758913843708,-500.0,0.00018999,2]
[387838711,1758913843717,-500.0,0.00018999,2]
[387838713,1758913843727,-500.0,0.00018999,2]
[387838714,1758913843737,-500.0,0.00018999,2]
[387838716,1758913843746,-500.0,0.00018999,2]
[387838717,1758913843756,-500.0,0.00018999,2]
[387838719,1758913843766,-500.0,0.00018999,2]
[387838721,1758913843775,-500.0,0.00018999,2]
[387838722,1758913843785,-330.3207108,0.00018999,2]
[387838724,1758913843795,-500.0,0.00018999,2]
[387838726,1758913843805,-500.0,0.00018999,2]
[387838727,1758913843814,-500.0,0.00018999,2]
[387838729,1758913843825,-278.23827879,0.00018999,2]
[387838731,1758913843834,-9552.16786547,0.00018999,2]
[387838732,1758913843843,-151.0,0.00018999,2]
[387838734,1758913843852,-151.0,0.00018999,2]
[387838735,1758913843862,-209.40437684,0.00018999,2]
[387838737,1758913843872,-500.0,0.00018999,2]
[387838739,1758913843881,-500.0,0.00018999,2]
[387838740,1758913843891,-500.0,0.00018999,2]
[387838742,1758913843902,-500.0,0.00018999,2]
[387838744,1758913843912,-500.0,0.00018999,2]
[387838745,1758913843921,-500.0,0.00018999,2]
[387838747,1758913843931,-512.89138526,0.00018999,2]
[387838749,1758913843941,-646.65982734,0.00018999,2]
[387838750,1758913843950,-151.0,0.00018999,2]
[387838752,1758913843960,-322.6107,0.00018999,2]
[387838754,1758913843969,-277.35679052,0.00018999,2]
[387838756,1758913843982,-224.97532436,0.00019031,2]
[387838757,1758913843991,-9905.5980765,0.00019054,2]
[387838759,1758913844001,-2126.4716,0.00019064,2]
[387838761,1758913844010,-10272.10520533,0.00019109,2]
[387838762,1758913844020,-10652.17309792,0.00019164,2]
[387838764,1758913844030,-412.11,0.00019178,2]
[387838766,1758913844042,-175.36,0.00019178,2]
[387838767,1758913844053,-150.37,0.00019178,2]
[387838769,1758913844065,-544.52,0.00019178,2]
[387838771,1758913844074,-175.36,0.00019178,2]
[387838772,1758913844084,-1195.25,0.00019178,2]
[387838774,1758913844093,-411.93,0.00019178,2]
[387838776,1758913844103,-150.94,0.00019178,2]
[387838777,1758913844112,-300.0,0.00019178,2]
[387838779,1758913844121,-167.57,0.00019178,2]
[387838781,1758913844131,-411.06,0.00019178,2]
[387838782,1758913844140,-1195.25,0.00019178,2]
[387838784,1758913844151,-544.52,0.00019178,2]
[387838786,1758913844160,-175.27,0.000192,2]
[387838787,1758913844169,-269.15,0.000192,2]
[387838789,1758913844179,-412.11,0.000192,2]
[387838791,1758913844188,-1195.25,0.000192,2]
[387838792,1758913844197,-542.07,0.000192,2]
[387838794,1758913844206,-175.36,0.000192,2]
[387838795,1758913844216,-544.52,0.000192,2]
[387838797,1758913844225,-11046.30350255,0.00019219,2]
[387838799,1758913844235,-5908.77072901,0.00019274,2]
[387838800,1758913844244,-1195.25,0.00019278,2]
[387838802,1758913844254,-544.52,0.00019278,2]
[387838804,1758913844263,-150.0,0.000193,2]
[387838805,1758913844273,-180.0,0.00019492,2]
[387838807,1758913844282,-153.0397454,0.00019547,2]
[387838809,1758913844292,-152.58670965,0.00019547,2]
[387838810,1758913844301,-182.12957375,0.00019725,2]
[387838812,1758913844310,-202.07522336,0.00019725,2]
[387838814,1758913844324,-14988.4,0.00019726,2]
[387838815,1758913844338,-653.33432694,0.00019748,2]
[387838816,1758913844348,-1146.60284602,0.00019755,2]
[387838817,1758913844358,-15000.0,0.000198,2]
[387838818,1758913844368,-1000.0,0.000198,2]
[387838819,1758913844377,-200.0,0.0001984,2]
[387838820,1758913844387,-557.60162204,0.00019841,2]
[387838821,1758913844399,-557.60162204,0.0001985,2]
[387838822,1758913844409,-6228.0,0.0001985,2]
[387838823,1758913844419,-728.0,0.0001985,2]
[387838824,1758913844428,-18905.0,0.0001985,2]
[387838825,1758913844438,-4179.0,0.0001985,2]
[387838826,1758913844447,-899.0,0.0001985,2]
[387838827,1758913844457,-709.15435064,0.00019861,2]
[387838829,1758913844469,-709.15435064,0.00019862,2]
[387838830,1758913844480,-167.40266502,0.00019865,2]
[387838832,1758913844489,-4654.37057965,0.00019865,2]
[387838834,1758913844499,-4654.37057964,0.00019869,2]
[387838836,1758913844510,-4654.37057964,0.00019873,2]
[387838838,1758913844520,-4654.37057964,0.00019877,2]
[387838840,1758913844531,-4654.37057964,0.00019881,2]
[387838842,1758913844541,-4654.37057964,0.00019884,2]
[387838844,1758913844551,-4654.37057964,0.00019888,2]
[387838846,1758913844561,-557.60162204,0.00019889,2]
[387838849,1758913844571,-557.60162204,0.0001989,2]
[387838851,1758913844582,-4654.37057964,0.00019892,2]
[387838853,1758913844592,-4654.37057964,0.00019896,2]
[387838855,1758913844602,-411.9109083,0.00019898,2]
[387838857,1758913844612,-164.24048794,0.00019899,2]
[387838859,1758913844622,-298.8176,0.000199,2]
[387838861,1758913844632,-168.72181818,0.000199,2]
[387838863,1758913844643,-5000.0,0.000199,2]
[387838865,1758913844654,-4654.37057964,0.000199,2]
[387838866,1758913844665,-156.05759828,0.000199,2]
[387838869,1758913844676,-709.15435064,0.00019906,2]
[387838870,1758913844686,-300.0,0.00019909,2]
[387838873,1758913844696,-557.60162204,0.00019932,2]
[387838875,1758913844705,-1299.304,0.00019942,2]
[387838877,1758913844715,-557.60162204,0.00019943,2]
[387838878,1758913844725,-108000.000001,0.0001995,2]
[387838881,1758913844735,-709.15435064,0.00019951,2]
[387838883,1758913844745,-709.15435064,0.00019958,2]
[387838885,1758913844755,-14261.35388104,0.00019965,2]
[387838887,1758913844765,-709.15435064,0.00019971,2]
[387838889,1758913844775,-500.0,0.00019973,2]
[387838891,1758913844786,-298.15086927,0.00019973,2]
[387838893,1758913844796,-500.0,0.00019973,2]
[387838895,1758913844805,-500.0,0.00019973,2]
[387838897,1758913844815,-500.0,0.00019973,2]
[387838899,1758913844825,-500.0,0.00019973,2]
[387838901,1758913844835,-500.0,0.00019973,2]
[387838903,1758913844845,-500.0,0.00019973,2]
[387838905,1758913844854,-500.0,0.00019973,2]
[387838907,1758913844864,-301.02052774,0.00019973,2]
[387838909,1758913844875,-500.0,0.00019973,2]
[387838911,1758913844885,-500.0,0.00019973,2]
[387838913,1758913844895,-709.15435064,0.00019984,2]
[387838915,1758913844905,-218.32865898,0.0001999,2]
[387838917,1758913844914,-218.32865898,0.0001999,2]
[387838919,1758913844925,-218.32865898,0.0001999,2]
[387838921,1758913844936,-557.60162204,0.00019992,2]
[387838923,1758913844946,-5000.0,0.00019998,2]
[387838925,1758913844955,-117473.5622134,0.00019999,2]
[387838926,1758913844978,-150.0,0.00019999,2]
[387838928,1758913844996,-3538.3436557,0.00019999,2]
[387838931,1758913845006,-966.4109555,0.00019999,2]
[387838933,1758913845017,-150.0,0.00019999,2]
[387838935,1758913845030,-150.0,0.00019999,2]
[387838937,1758913845041,-500.0,0.00019999,2]
[387838939,1758913845052,-150.0,0.00019999,2]
[387838941,1758913845062,-150.0,0.00019999,2]
[387838943,1758913845072,-150.0,0.00019999,2]
[387838945,1758913845083,-150.0,0.00019999,2]
[387838947,1758913845094,-150.0,0.00019999,2]
[387838949,1758913845104,-150.0,0.00019999,2]
[387838951,1758913845114,-500.0,0.00019999,2]
[387838953,1758913845123,-150.0,0.00019999,2]
[387838955,1758913845133,-150.0,0.00019999,2]
[387838957,1758913845143,-150.0,0.00019999,2]
[387838959,1758913845153,-150.0,0.00019999,2]
[387838961,1758913845162,-150.0,0.00019999,2]
[387838963,1758913845172,-500.0,0.00019999,2]
[387838965,1758913845183,-500.0,0.00019999,2]
[387838966,1758913845193,-2120.0,0.00019999,2]
[387838969,1758913845205,-150.0,0.00019999,2]
[387838971,1758913845215,-150.0,0.00019999,2]
[387838973,1758913845225,-150.32338469,0.00019999,2]
[387838975,1758913845235,-150.0,0.00019999,2]
[387838977,1758913845244,-150.39379499,0.00019999,2]
[387838979,1758913845254,-150.0,0.00019999,2]
[387838981,1758913845265,-150.0,0.00019999,2]
[387838983,1758913845275,-150.0,0.00019999,2]
[387838985,1758913845285,-150.0,0.00019999,2]
[387838987,1758913845295,-150.0,0.00019999,2]
[387838989,1758913845305,-500.0,0.00019999,2]
[387838991,1758913845315,-500.0,0.00019999,2]
[387838993,1758913845325,-150.0,0.00019999,2]
[387838995,1758913845335,-150.0,0.00019999,2]
[387838997,1758913845344,-500.0,0.00019999,2]
[387838999,1758913845355,-150.0,0.00019999,2]
[387839001,1758913845364,-150.0,0.00019999,2]
[387839003,1758913845375,-287.01275339,0.00019999,2]
[387839005,1758913845384,-500.0,0.00019999,2]
[387839007,1758913845395,-500.0,0.00019999,2]
[387839009,1758913845405,-5900.802611,0.00019999,2]
[387839011,1758913845415,-500.0,0.00019999,2]
[387839013,1758913845426,-150.0,0.00019999,2]
[387839015,1758913845436,-150.0,0.00019999,2]
[387839017,1758913845445,-500.0,0.00019999,2]
[387839018,1758913845455,-150.0,0.00019999,2]
[387839021,1758913845465,-500.0,0.00019999,2]
[387839022,1758913845474,-1016.42963162,0.0002,2]